[Event "Late-Titled-Tuesday-Blitz-March-26-2024"]
[Site "Chess.com"]
[Date "2024.03.26"]
[Round "2"]
[White "GelmanAlexander"]
[Black "NikoTheodorou"]
[Result "0-1"]
[WhiteElo "2680"]
[BlackElo "3113"]
[TimeControl "180+1"]
[EndTime "14:18:24 PDT"]
[Termination "NikoTheodorou won by resignation"]

1. c4 {[%clk 0:03:00.9]} 1... e5 {[%clk 0:02:39.1]} 2. e3 {[%clk 0:03:00.7]}
2... Nf6 {[%clk 0:02:37.3]} 3. a3 {[%clk 0:03:01]} 3... b6 {[%clk 0:02:36.5]} 4.
d3 {[%clk 0:02:58.6]} 4... Bb7 {[%clk 0:02:36.5]} 5. Nf3 {[%clk 0:02:58.5]} 5...
Nc6 {[%clk 0:02:36.1]} 6. b4 {[%clk 0:02:57.6]} 6... d6 {[%clk 0:02:23]} 7. Bb2
{[%clk 0:02:56.6]} 7... g6 {[%clk 0:02:23.4]} 8. Be2 {[%clk 0:02:55.6]} 8... Bg7
{[%clk 0:02:23.5]} 9. Nbd2 {[%clk 0:02:55.1]} 9... O-O {[%clk 0:02:24.3]} 10.
Qc2 {[%clk 0:02:54]} 10... a5 {[%clk 0:02:23.7]} 11. b5 {[%clk 0:02:52]} 11...
Ne7 {[%clk 0:02:24]} 12. h3 {[%clk 0:02:46.3]} 12... Nd7 {[%clk 0:02:23.7]} 13.
g4 {[%clk 0:02:45]} 13... Nc5 {[%clk 0:02:14.3]} 14. Rg1 {[%clk 0:02:44.9]}
14... Re8 {[%clk 0:02:13.4]} 15. h4 {[%clk 0:02:44.2]} 15... d5 {[%clk 0:02:14]}
16. cxd5 {[%clk 0:02:38]} 16... Nxd5 {[%clk 0:02:14.9]} 17. h5 {[%clk
0:02:33.4]} 17... Qe7 {[%clk 0:02:09.3]} 18. Rd1 {[%clk 0:02:31.2]} 18... Rad8
{[%clk 0:02:09.3]} 19. g5 {[%clk 0:02:24.4]} 19... Nf4 {[%clk 0:02:08.6]} 20.
exf4 {[%clk 0:01:58.4]} 20... exf4 {[%clk 0:02:09.5]} 21. Ne4 {[%clk 0:01:56.5]}
21... Bxb2 {[%clk 0:01:32.4]} 22. Qxb2 {[%clk 0:01:53.1]} 22... Nxd3+ {[%clk
0:01:28.6]} 23. Rxd3 {[%clk 0:01:37.3]} 23... Rxd3 {[%clk 0:01:28.8]} 24. Nf6+
{[%clk 0:01:26.8]} 24... Qxf6 {[%clk 0:01:29]} 25. gxf6 {[%clk 0:00:24.1]} 25...
Bxf3 {[%clk 0:01:28.8]} 26. Rg5 {[%clk 0:00:22.9]} 26... Rxe2+ {[%clk
0:01:03.5]} 27. Qxe2 {[%clk 0:00:22.7]} 27... Bxe2 {[%clk 0:01:04.4]} 28. Kxe2
{[%clk 0:00:23.5]} 28... Rd6 {[%clk 0:00:52.4]} 29. h6 {[%clk 0:00:16.7]} 29...
Rxf6 {[%clk 0:00:44.8]} 30. Kf3 {[%clk 0:00:14.8]} 30... Kf8 {[%clk 0:00:41.8]}
31. Rd5 {[%clk 0:00:12.4]} 31... Rd6 {[%clk 0:00:39.3]} 32. Rxd6 {[%clk
0:00:11.5]} 32... cxd6 {[%clk 0:00:40.2]} 33. Kxf4 {[%clk 0:00:12.1]} 33... Ke7
{[%clk 0:00:35.7]} 34. Ke4 {[%clk 0:00:12.4]} 34... Ke6 {[%clk 0:00:34.6]} 35.
f4 {[%clk 0:00:12.2]} 35... d5+ {[%clk 0:00:34.6]} 36. Kd4 {[%clk 0:00:12.5]}
36... Kd6 {[%clk 0:00:35.3]} 37. a4 {[%clk 0:00:08.9]} 37... f6 {[%clk
0:00:35.7]} 0-1

[Event "Late-Titled-Tuesday-Blitz-March-26-2024"]
[Site "Chess.com"]
[Date "2024.03.26"]
[Round "2"]
[White "TheCount"]
[Black "AryanTari"]
[Result "0-1"]
[WhiteElo "2636"]
[BlackElo "2998"]
[TimeControl "180+1"]
[EndTime "14:18:28 PDT"]
[Termination "AryanTari won on time"]

1. g3 {[%clk 0:03:00.3]} 1... e5 {[%clk 0:02:59.5]} 2. Bg2 {[%clk 0:02:58.6]}
2... d5 {[%clk 0:02:59.8]} 3. c4 {[%clk 0:02:56.1]} 3... dxc4 {[%clk 0:02:59.2]}
4. Qa4+ {[%clk 0:02:54.3]} 4... Nc6 {[%clk 0:02:58.8]} 5. Qxc4 {[%clk
0:02:48.2]} 5... Bd6 {[%clk 0:02:55.9]} 6. d3 {[%clk 0:02:31.8]} 6... h6 {[%clk
0:02:55.3]} 7. Bxc6+ {[%clk 0:02:29.2]} 7... bxc6 {[%clk 0:02:55.5]} 8. Qxc6+
{[%clk 0:02:30.1]} 8... Bd7 {[%clk 0:02:56.1]} 9. Qc2 {[%clk 0:02:27.8]} 9...
Nf6 {[%clk 0:02:54.2]} 10. Nf3 {[%clk 0:02:26.5]} 10... Bh3 {[%clk 0:02:50.9]}
11. Nc3 {[%clk 0:02:20.3]} 11... O-O {[%clk 0:02:47.1]} 12. Be3 {[%clk
0:02:15.8]} 12... Qd7 {[%clk 0:02:38.4]} 13. Qa4 {[%clk 0:02:05.5]} 13... Qe6
{[%clk 0:02:05.2]} 14. Qc4 {[%clk 0:02:01.4]} 14... Qd7 {[%clk 0:02:03.8]} 15.
d4 {[%clk 0:01:43.9]} 15... Bg2 {[%clk 0:01:30.1]} 16. Rg1 {[%clk 0:01:26.8]}
16... Bxf3 {[%clk 0:01:29.4]} 17. exf3 {[%clk 0:01:27.7]} 17... exd4 {[%clk
0:01:24.9]} 18. Qxd4 {[%clk 0:01:25.3]} 18... Qf5 {[%clk 0:01:18.8]} 19. Ke2
{[%clk 0:00:43.7]} 19... Rfe8 {[%clk 0:01:04.4]} 20. g4 {[%clk 0:00:42.7]} 20...
Qa5 {[%clk 0:00:49.4]} 21. h4 {[%clk 0:00:42.6]} 21... Rab8 {[%clk 0:00:47.4]}
22. Rab1 {[%clk 0:00:37.7]} 22... Be5 {[%clk 0:00:38.9]} 23. Qd3 {[%clk
0:00:26.2]} 23... Rbd8 {[%clk 0:00:29.7]} 24. Qc4 {[%clk 0:00:23.2]} 24... Bxc3
{[%clk 0:00:25.3]} 25. bxc3 {[%clk 0:00:20.5]} 25... Nd5 {[%clk 0:00:25.1]} 26.
Rgc1 {[%clk 0:00:15.7]} 26... Nxe3 {[%clk 0:00:22.7]} 27. fxe3 {[%clk
0:00:16.6]} 27... Qe5 {[%clk 0:00:23.2]} 28. Kf2 {[%clk 0:00:06.8]} 28... Rd2+
{[%clk 0:00:22.4]} 29. Kf1 {[%clk 0:00:04.3]} 29... Qh2 {[%clk 0:00:21.8]} 0-1

[Event "Late-Titled-Tuesday-Blitz-March-26-2024"]
[Site "Chess.com"]
[Date "2024.03.26"]
[Round "2"]
[White "CURRUTACO59"]
[Black "sjoerd893"]
[Result "0-1"]
[WhiteElo "2269"]
[BlackElo "2499"]
[TimeControl "180+1"]
[EndTime "14:18:29 PDT"]
[Termination "sjoerd893 won on time"]

1. Nf3 {[%clk 0:03:00.9]} 1... d5 {[%clk 0:02:57.1]} 2. d4 {[%clk 0:03:00.9]}
2... Nf6 {[%clk 0:02:57.3]} 3. c4 {[%clk 0:03:01]} 3... c6 {[%clk 0:02:56.9]} 4.
e3 {[%clk 0:03:00.6]} 4... e6 {[%clk 0:02:56.2]} 5. Nbd2 {[%clk 0:03:00.4]} 5...
Nbd7 {[%clk 0:02:55.8]} 6. Bd3 {[%clk 0:03:00.5]} 6... Bd6 {[%clk 0:02:56.4]} 7.
O-O {[%clk 0:03:00.1]} 7... O-O {[%clk 0:02:56.7]} 8. e4 {[%clk 0:03:00.5]} 8...
dxe4 {[%clk 0:02:56.6]} 9. Nxe4 {[%clk 0:03:01.4]} 9... Nxe4 {[%clk 0:02:57.4]}
10. Bxe4 {[%clk 0:03:01.4]} 10... Nf6 {[%clk 0:02:58.3]} 11. Bc2 {[%clk
0:03:01.1]} 11... c5 {[%clk 0:02:58.9]} 12. Qd3 {[%clk 0:02:59.1]} 12... h6
{[%clk 0:02:52.5]} 13. Rd1 {[%clk 0:02:54.9]} 13... cxd4 {[%clk 0:02:52.3]} 14.
Qxd4 {[%clk 0:02:51.2]} 14... Be7 {[%clk 0:02:47.2]} 15. Qh4 {[%clk 0:02:49.1]}
15... Qc7 {[%clk 0:02:17.2]} 16. Bxh6 {[%clk 0:02:42.7]} 16... gxh6 {[%clk
0:02:13.1]} 17. Qxh6 {[%clk 0:02:42.5]} 17... Qxc4 {[%clk 0:02:09.3]} 18. Rac1
{[%clk 0:01:36.7]} 18... Qg4 {[%clk 0:01:57.9]} 19. Rd4 {[%clk 0:01:23.1]} 19...
Qh5 {[%clk 0:01:44.8]} 20. Qd2 {[%clk 0:00:49.4]} 20... Nd5 {[%clk 0:01:15.4]}
21. h3 {[%clk 0:00:42]} 21... f5 {[%clk 0:01:08.3]} 22. Bb3 {[%clk 0:00:25.4]}
22... Bf6 {[%clk 0:00:59.8]} 23. Rxd5 {[%clk 0:00:24]} 23... exd5 {[%clk
0:00:58.9]} 24. Bxd5+ {[%clk 0:00:23]} 24... Kh8 {[%clk 0:00:53.9]} 25. Rc7
{[%clk 0:00:21]} 25... Rd8 {[%clk 0:00:41.1]} 26. Qb4 {[%clk 0:00:15.5]} 26...
Qh6 {[%clk 0:00:22]} 27. Rf7 {[%clk 0:00:12.4]} 27... Rxd5 {[%clk 0:00:17.3]}
0-1

[Event "Late-Titled-Tuesday-Blitz-March-26-2024"]
[Site "Chess.com"]
[Date "2024.03.26"]
[Round "2"]
[White "ritanovikova"]
[Black "KetiTsatsalashvili"]
[Result "0-1"]
[WhiteElo "2110"]
[BlackElo "2440"]
[TimeControl "180+1"]
[EndTime "14:18:31 PDT"]
[Termination "KetiTsatsalashvili won on time"]

1. e4 {[%clk 0:02:47.3]} 1... c5 {[%clk 0:02:57.1]} 2. Nc3 {[%clk 0:02:46.9]}
2... Nc6 {[%clk 0:02:56.7]} 3. d3 {[%clk 0:02:46.3]} 3... e6 {[%clk 0:02:55.7]}
4. Be3 {[%clk 0:02:46.6]} 4... d5 {[%clk 0:02:55.7]} 5. exd5 {[%clk 0:02:45.9]}
5... exd5 {[%clk 0:02:56.6]} 6. Bd2 {[%clk 0:02:45.6]} 6... d4 {[%clk
0:02:56.8]} 7. Ne4 {[%clk 0:02:44]} 7... h6 {[%clk 0:02:54.8]} 8. Nf3 {[%clk
0:02:43.5]} 8... Nf6 {[%clk 0:02:55.4]} 9. Nxf6+ {[%clk 0:02:43.2]} 9... Qxf6
{[%clk 0:02:55.2]} 10. Be2 {[%clk 0:02:43.4]} 10... Bd6 {[%clk 0:02:55.1]} 11.
O-O {[%clk 0:02:37.1]} 11... O-O {[%clk 0:02:55.2]} 12. a3 {[%clk 0:02:18.3]}
12... Be6 {[%clk 0:02:52.6]} 13. Rb1 {[%clk 0:02:16.5]} 13... Ba2 {[%clk
0:02:51.1]} 14. Ra1 {[%clk 0:02:15.5]} 14... Bd5 {[%clk 0:02:51.5]} 15. Rb1
{[%clk 0:02:12.1]} 15... a5 {[%clk 0:02:51.5]} 16. c4 {[%clk 0:02:06.1]} 16...
Be6 {[%clk 0:02:39.6]} 17. b3 {[%clk 0:01:59]} 17... Rfe8 {[%clk 0:02:39.3]} 18.
Re1 {[%clk 0:01:53.8]} 18... Bg4 {[%clk 0:02:37.3]} 19. Nxd4 {[%clk 0:01:40.1]}
19... Rxe2 {[%clk 0:01:53.4]} 20. Nxe2 {[%clk 0:01:33.2]} 20... Nd4 {[%clk
0:01:50.6]} 21. h3 {[%clk 0:01:11.3]} 21... Nf3+ {[%clk 0:00:52.4]} 22. gxf3
{[%clk 0:00:37.9]} 22... Bxf3 {[%clk 0:00:53.3]} 23. Ng3 {[%clk 0:00:03.4]}
23... Bxd1 {[%clk 0:00:50]} 24. Rbxd1 {[%clk 0:00:04.1]} 24... Bxg3 {[%clk
0:00:48.2]} 25. fxg3 {[%clk 0:00:03.9]} 25... Qf3 {[%clk 0:00:48.3]} 26. Bf4
{[%clk 0:00:02.9]} 26... Rd8 {[%clk 0:00:44.8]} 27. Rf1 {[%clk 0:00:02.1]} 27...
Qe2 {[%clk 0:00:40.2]} 28. Rfe1 {[%clk 0:00:01.6]} 28... Qc2 {[%clk 0:00:38.3]}
29. Bc7 {[%clk 0:00:01.2]} 29... Rxd3 {[%clk 0:00:37.1]} 30. Rxd3 {[%clk
0:00:01.4]} 30... Qxd3 {[%clk 0:00:36.6]} 31. Re8+ {[%clk 0:00:01]} 31... Kh7
{[%clk 0:00:36.2]} 0-1

[Event "Late-Titled-Tuesday-Blitz-March-26-2024"]
[Site "Chess.com"]
[Date "2024.03.26"]
[Round "2"]
[White "Blackmind96"]
[Black "Bkmzzzzz"]
[Result "1-0"]
[WhiteElo "2738"]
[BlackElo "2393"]
[TimeControl "180+1"]
[EndTime "14:18:36 PDT"]
[Termination "Blackmind96 won on time"]

1. d4 {[%clk 0:03:00.9]} 1... d5 {[%clk 0:02:59.7]} 2. c4 {[%clk 0:03:00.9]}
2... dxc4 {[%clk 0:03:00.6]} 3. Nf3 {[%clk 0:02:59.3]} 3... a6 {[%clk 0:03:00]}
4. e3 {[%clk 0:02:56.3]} 4... Nf6 {[%clk 0:02:58.8]} 5. Bxc4 {[%clk 0:02:55.8]}
5... e6 {[%clk 0:02:58.4]} 6. O-O {[%clk 0:02:55.4]} 6... b5 {[%clk 0:02:54.2]}
7. Bd3 {[%clk 0:02:54.3]} 7... c5 {[%clk 0:02:54.1]} 8. e4 {[%clk 0:02:48.1]}
8... Bb7 {[%clk 0:02:38.9]} 9. e5 {[%clk 0:02:43.4]} 9... Nd5 {[%clk 0:02:38.3]}
10. Ng5 {[%clk 0:02:42.2]} 10... h6 {[%clk 0:02:26.7]} 11. Qh5 {[%clk
0:02:38.3]} 11... hxg5 {[%clk 0:01:48.1]} 12. Qxh8 {[%clk 0:02:37.7]} 12... Nb4
{[%clk 0:01:48.6]} 13. Bh7 {[%clk 0:02:32.2]} 13... Qd5 {[%clk 0:01:43]} 14. f3
{[%clk 0:02:32]} 14... Qxd4+ {[%clk 0:01:43.4]} 15. Kh1 {[%clk 0:02:30.2]} 15...
Qxe5 {[%clk 0:01:39.9]} 16. Nc3 {[%clk 0:02:24.6]} 16... Nd7 {[%clk 0:01:37.8]}
17. Be4 {[%clk 0:02:09.5]} 17... Nd5 {[%clk 0:01:26.8]} 18. Bxd5 {[%clk
0:02:00.4]} 18... exd5 {[%clk 0:01:27.7]} 19. f4 {[%clk 0:02:00]} 19... Qe7
{[%clk 0:01:06.3]} 20. fxg5 {[%clk 0:01:54.3]} 20... O-O-O {[%clk 0:01:04.8]}
21. Bf4 {[%clk 0:01:50]} 21... c4 {[%clk 0:00:53.6]} 22. Rad1 {[%clk 0:01:44.8]}
22... Nb6 {[%clk 0:00:49.7]} 23. Rfe1 {[%clk 0:01:34.2]} 23... Qd7 {[%clk
0:00:46.9]} 24. Be5 {[%clk 0:01:30.8]} 24... Qg4 {[%clk 0:00:28.6]} 25. Rd4
{[%clk 0:01:30.1]} 25... Qxg5 {[%clk 0:00:28.1]} 26. Qh3+ {[%clk 0:01:30.5]}
26... f5 {[%clk 0:00:24]} 27. Rdd1 {[%clk 0:01:07.5]} 27... g6 {[%clk
0:00:19.7]} 28. Ne2 {[%clk 0:01:06.8]} 28... Bc5 {[%clk 0:00:18.6]} 29. Nd4
{[%clk 0:01:06.6]} 29... Re8 {[%clk 0:00:14.8]} 30. Qh7 {[%clk 0:00:58.3]} 30...
Re7 {[%clk 0:00:13.8]} 31. Qg8+ {[%clk 0:00:57.2]} 31... Kd7 {[%clk 0:00:13.9]}
32. Qb8 {[%clk 0:00:52.8]} 32... Bc8 {[%clk 0:00:13.7]} 33. Qc7+ {[%clk
0:00:47.3]} 33... Ke8 {[%clk 0:00:13.8]} 34. Bd6 {[%clk 0:00:47.5]} 34... Bxd6
{[%clk 0:00:11]} 35. Qxd6 {[%clk 0:00:45.9]} 35... Nd7 {[%clk 0:00:10.8]} 36.
Nc6 {[%clk 0:00:43.4]} 36... Re4 {[%clk 0:00:07.5]} 37. Qxd5 {[%clk 0:00:38.8]}
1-0

[Event "Late-Titled-Tuesday-Blitz-March-26-2024"]
[Site "Chess.com"]
[Date "2024.03.26"]
[Round "2"]
[White "rezamahdavi2008"]
[Black "bazar-wokzal"]
[Result "1-0"]
[WhiteElo "2849"]
[BlackElo "2578"]
[TimeControl "180+1"]
[EndTime "14:18:37 PDT"]
[Termination "rezamahdavi2008 won on time"]

1. Nf3 {[%clk 0:03:00.9]} 1... c5 {[%clk 0:02:59.1]} 2. c4 {[%clk 0:03:00.8]}
2... g6 {[%clk 0:02:59]} 3. g3 {[%clk 0:02:58.7]} 3... Bg7 {[%clk 0:02:59.2]} 4.
Bg2 {[%clk 0:02:56.9]} 4... Nc6 {[%clk 0:02:59.6]} 5. Nc3 {[%clk 0:02:57.3]}
5... Nf6 {[%clk 0:02:59.4]} 6. O-O {[%clk 0:02:54.1]} 6... d5 {[%clk 0:02:59.4]}
7. cxd5 {[%clk 0:02:44.3]} 7... Nxd5 {[%clk 0:02:59.6]} 8. Qa4 {[%clk
0:02:37.7]} 8... O-O {[%clk 0:02:52.8]} 9. Nxd5 {[%clk 0:02:37.5]} 9... Qxd5
{[%clk 0:02:52.2]} 10. d3 {[%clk 0:02:38.4]} 10... Bd7 {[%clk 0:02:41.3]} 11.
Qh4 {[%clk 0:02:37.1]} 11... Qh5 {[%clk 0:02:17.4]} 12. Qxh5 {[%clk 0:02:35.6]}
12... gxh5 {[%clk 0:02:17.4]} 13. Rb1 {[%clk 0:02:36.2]} 13... b6 {[%clk
0:02:13.6]} 14. a3 {[%clk 0:02:36.7]} 14... a5 {[%clk 0:02:08.7]} 15. Nd2 {[%clk
0:02:32.8]} 15... Rab8 {[%clk 0:02:06.1]} 16. Ne4 {[%clk 0:02:31.4]} 16... Nd4
{[%clk 0:02:00.9]} 17. Nc3 {[%clk 0:02:31.3]} 17... Rfc8 {[%clk 0:01:53.8]} 18.
Re1 {[%clk 0:02:30.5]} 18... Kf8 {[%clk 0:01:48.4]} 19. Bd2 {[%clk 0:02:30.1]}
19... Bc6 {[%clk 0:01:39.6]} 20. Bxc6 {[%clk 0:02:29.6]} 20... Rxc6 {[%clk
0:01:40]} 21. Kf1 {[%clk 0:02:30.1]} 21... Bf6 {[%clk 0:01:38.6]} 22. Rec1
{[%clk 0:02:30.3]} 22... Nb3 {[%clk 0:01:35.2]} 23. Rd1 {[%clk 0:02:31]} 23...
Nxd2+ {[%clk 0:01:34.8]} 24. Rxd2 {[%clk 0:02:31.9]} 24... h4 {[%clk 0:01:32.6]}
25. Rc2 {[%clk 0:02:31]} 25... hxg3 {[%clk 0:01:31.4]} 26. hxg3 {[%clk
0:02:31.9]} 26... h5 {[%clk 0:01:26]} 27. Kg2 {[%clk 0:02:29.9]} 27... h4 {[%clk
0:01:25.4]} 28. g4 {[%clk 0:02:30.3]} 28... Kg7 {[%clk 0:01:11.7]} 29. e3 {[%clk
0:02:27.7]} 29... Bxc3 {[%clk 0:01:02.5]} 30. bxc3 {[%clk 0:02:27.7]} 30... b5
{[%clk 0:01:01.2]} 31. Rcb2 {[%clk 0:02:27.9]} 31... Rcb6 {[%clk 0:01:00.8]} 32.
Kh3 {[%clk 0:02:23.2]} 32... b4 {[%clk 0:01:00.2]} 33. cxb4 {[%clk 0:02:23]}
33... cxb4 {[%clk 0:00:58.4]} 34. axb4 {[%clk 0:02:22.7]} 34... Rxb4 {[%clk
0:00:58.2]} 35. Rxb4 {[%clk 0:02:22.5]} 35... Rxb4 {[%clk 0:00:54]} 36. Ra1
{[%clk 0:02:22.9]} 36... a4 {[%clk 0:00:54.1]} 37. Kxh4 {[%clk 0:02:17.1]} 37...
f5 {[%clk 0:00:53.3]} 38. f4 {[%clk 0:02:15.1]} 38... fxg4 {[%clk 0:00:49.7]}
39. Kxg4 {[%clk 0:02:16]} 39... Rb3 {[%clk 0:00:39.9]} 40. Rxa4 {[%clk
0:02:07.7]} 40... Rxd3 {[%clk 0:00:39.6]} 41. e4 {[%clk 0:02:08.6]} 41... Kf7
{[%clk 0:00:38.1]} 42. Ra5 {[%clk 0:01:51.6]} 42... Rb3 {[%clk 0:00:36.6]} 43.
Ra6 {[%clk 0:01:49.5]} 43... Rb5 {[%clk 0:00:36]} 44. Ra1 {[%clk 0:01:48.1]}
44... Rb4 {[%clk 0:00:35.7]} 45. Kf5 {[%clk 0:01:46.8]} 45... Rb5+ {[%clk
0:00:34.8]} 46. e5 {[%clk 0:01:43.8]} 46... Rb4 {[%clk 0:00:28.4]} 47. Rh1
{[%clk 0:01:41.3]} 47... Kg7 {[%clk 0:00:27.6]} 48. Ke6 {[%clk 0:01:38.2]} 48...
Rb7 {[%clk 0:00:19]} 49. Ra1 {[%clk 0:01:33.8]} 49... Kg6 {[%clk 0:00:07.5]} 50.
Rg1+ {[%clk 0:01:25.9]} 50... Kh5 {[%clk 0:00:06.8]} 51. Rg8 {[%clk 0:01:25.3]}
51... Ra7 {[%clk 0:00:04.2]} 52. f5 {[%clk 0:01:25.3]} 52... Kh6 {[%clk
0:00:02.6]} 53. f6 {[%clk 0:01:20.5]} 53... exf6 {[%clk 0:00:02.1]} 54. Kxf6
{[%clk 0:01:20.2]} 1-0

[Event "Late-Titled-Tuesday-Blitz-March-26-2024"]
[Site "Chess.com"]
[Date "2024.03.26"]
[Round "2"]
[White "egnfanclub"]
[Black "MPCandelario"]
[Result "0-1"]
[WhiteElo "2381"]
[BlackElo "2671"]
[TimeControl "180+1"]
[EndTime "14:18:40 PDT"]
[Termination "MPCandelario won on time"]

1. e4 {[%clk 0:03:00.9]} 1... c5 {[%clk 0:02:59.4]} 2. Nc3 {[%clk 0:02:59.8]}
2... g6 {[%clk 0:02:58.9]} 3. f4 {[%clk 0:02:58.8]} 3... Bg7 {[%clk 0:02:57.7]}
4. Nf3 {[%clk 0:02:59.5]} 4... Nc6 {[%clk 0:02:56.9]} 5. Bc4 {[%clk 0:02:59.3]}
5... e6 {[%clk 0:02:55.7]} 6. f5 {[%clk 0:02:59.7]} 6... Nge7 {[%clk 0:02:39.8]}
7. fxe6 {[%clk 0:02:59.6]} 7... fxe6 {[%clk 0:02:38.4]} 8. d3 {[%clk 0:03:00.3]}
8... d5 {[%clk 0:02:31.5]} 9. Bb3 {[%clk 0:02:59.2]} 9... Nd4 {[%clk 0:02:26.9]}
10. O-O {[%clk 0:02:53.5]} 10... Nxb3 {[%clk 0:02:25]} 11. axb3 {[%clk
0:02:52.9]} 11... O-O {[%clk 0:02:24.1]} 12. Bg5 {[%clk 0:02:52.6]} 12... d4
{[%clk 0:02:16.6]} 13. Na4 {[%clk 0:02:50.7]} 13... Qc7 {[%clk 0:01:36.8]} 14.
Bxe7 {[%clk 0:02:46.7]} 14... Qxe7 {[%clk 0:01:37.7]} 15. Nb6 {[%clk 0:02:46.7]}
15... Rb8 {[%clk 0:01:35.8]} 16. Rxa7 {[%clk 0:02:46.5]} 16... Bh6 {[%clk
0:01:27.9]} 17. Nc4 {[%clk 0:02:36.5]} 17... Bd7 {[%clk 0:01:20.3]} 18. Nfe5
{[%clk 0:02:27.5]} 18... Rxf1+ {[%clk 0:01:19.4]} 19. Qxf1 {[%clk 0:02:28.4]}
19... Rf8 {[%clk 0:01:17.1]} 20. Qe2 {[%clk 0:02:25.9]} 20... Bc8 {[%clk
0:01:13]} 21. h3 {[%clk 0:01:53.9]} 21... Qg5 {[%clk 0:01:11]} 22. Ra1 {[%clk
0:01:44.5]} 22... b5 {[%clk 0:01:09.6]} 23. Nf3 {[%clk 0:01:44.7]} 23... Qg3
{[%clk 0:01:04.6]} 24. Ncd2 {[%clk 0:01:33.9]} 24... e5 {[%clk 0:01:02.9]} 25.
Nf1 {[%clk 0:01:29.1]} 25... Qf4 {[%clk 0:00:58.6]} 26. Ra8 {[%clk 0:01:08.5]}
26... Qc1 {[%clk 0:00:50]} 27. g4 {[%clk 0:00:51.8]} 27... Bf4 {[%clk
0:00:42.3]} 28. Kg2 {[%clk 0:00:45.5]} 28... Qxb2 {[%clk 0:00:42.3]} 29. Rb8
{[%clk 0:00:38]} 29... b4 {[%clk 0:00:41.9]} 30. Rb5 {[%clk 0:00:30.6]} 30...
Qc3 {[%clk 0:00:41.3]} 31. Rb8 {[%clk 0:00:28.1]} 31... Qa1 {[%clk 0:00:39.3]}
32. Ng3 {[%clk 0:00:27.4]} 32... Qa7 {[%clk 0:00:38.3]} 33. Rxc8 {[%clk
0:00:15.8]} 33... Rxc8 {[%clk 0:00:39.2]} 34. Ng1 {[%clk 0:00:05.8]} 34... Ra8
{[%clk 0:00:35.7]} 35. h4 {[%clk 0:00:05.4]} 35... Qe7 {[%clk 0:00:35.7]} 36.
Kh3 {[%clk 0:00:04.9]} 36... Ra1 {[%clk 0:00:35.3]} 37. Qf2 {[%clk 0:00:03.3]}
37... Be3 {[%clk 0:00:31.1]} 0-1

[Event "Late-Titled-Tuesday-Blitz-March-26-2024"]
[Site "Chess.com"]
[Date "2024.03.26"]
[Round "2"]
[White "financieru"]
[Black "deepfear"]
[Result "1-0"]
[WhiteElo "2424"]
[BlackElo "1959"]
[TimeControl "180+1"]
[EndTime "14:18:40 PDT"]
[Termination "financieru won on time"]

1. d4 {[%clk 0:02:59.9]} 1... Nf6 {[%clk 0:02:59.4]} 2. c4 {[%clk 0:03:00.6]}
2... g6 {[%clk 0:02:59.8]} 3. Nc3 {[%clk 0:03:01.2]} 3... Bg7 {[%clk 0:03:00.3]}
4. e4 {[%clk 0:03:01.8]} 4... d6 {[%clk 0:03:00.3]} 5. f3 {[%clk 0:03:02.6]}
5... O-O {[%clk 0:02:59.6]} 6. Be3 {[%clk 0:03:03.4]} 6... Nc6 {[%clk
0:02:57.5]} 7. Nge2 {[%clk 0:03:03.1]} 7... a6 {[%clk 0:02:51]} 8. Qd2 {[%clk
0:03:02.8]} 8... Rb8 {[%clk 0:02:46.8]} 9. h4 {[%clk 0:03:02.9]} 9... h5 {[%clk
0:02:45.8]} 10. Nd5 {[%clk 0:03:02.5]} 10... b5 {[%clk 0:02:27.9]} 11. cxb5
{[%clk 0:03:03.4]} 11... Rxb5 {[%clk 0:02:05.9]} 12. Rc1 {[%clk 0:02:40.7]}
12... Nxd5 {[%clk 0:01:50.5]} 13. exd5 {[%clk 0:02:37.9]} 13... Nb4 {[%clk
0:01:43.2]} 14. Nc3 {[%clk 0:02:22.4]} 14... Rb8 {[%clk 0:01:37.4]} 15. a3
{[%clk 0:02:16.4]} 15... e5 {[%clk 0:00:59.3]} 16. axb4 {[%clk 0:01:59.7]} 16...
exd4 {[%clk 0:00:57.6]} 17. Bxd4 {[%clk 0:01:57.8]} 17... Re8+ {[%clk
0:00:54.1]} 18. Kf2 {[%clk 0:01:43.4]} 18... Rxb4 {[%clk 0:00:50]} 19. Bxg7
{[%clk 0:01:43.1]} 19... Kxg7 {[%clk 0:00:49.4]} 20. Ne4 {[%clk 0:01:39.1]}
20... Rb3 {[%clk 0:00:11.8]} 21. Bc4 {[%clk 0:01:25]} 21... Rb6 {[%clk
0:00:10.7]} 22. Qd4+ {[%clk 0:01:18.5]} 22... f6 {[%clk 0:00:10.6]} 23. Rhe1
{[%clk 0:01:15.3]} 23... Bf5 {[%clk 0:00:10.5]} 24. b3 {[%clk 0:01:08.2]} 24...
a5 {[%clk 0:00:07.7]} 25. Ng5 {[%clk 0:00:59.1]} 25... Re5 {[%clk 0:00:06.5]}
26. Ne6+ {[%clk 0:00:45.4]} 26... Bxe6 {[%clk 0:00:06.4]} 27. dxe6 {[%clk
0:00:46.3]} 27... a4 {[%clk 0:00:05.1]} 28. bxa4 {[%clk 0:00:37.5]} 28... d5
{[%clk 0:00:05.4]} 29. Rxe5 {[%clk 0:00:32.8]} 29... fxe5 {[%clk 0:00:04.4]} 30.
Qxe5+ {[%clk 0:00:30.3]} 30... Kh7 {[%clk 0:00:04.3]} 31. e7 {[%clk 0:00:27.4]}
31... Qe8 {[%clk 0:00:03.4]} 32. Bxd5 {[%clk 0:00:26.8]} 32... Rd6 {[%clk
0:00:02.4]} 33. Rxc7 {[%clk 0:00:24.6]} 1-0